fUST/lending_fUST_20240425
["ID","MTS","AMOUNT","RATE_DAILY","PERIOD"]
[323433995,1713984689348,-806.42,0.00019452,2]
[323433996,1713984689357,-500.0,0.00019452,2]
[323433997,1713984689367,-564.43,0.00019452,2]
[323433998,1713984689377,-12995.55,0.00019452,2]
[323433999,1713984689387,-2682.8,0.00019452,2]
[323434000,1713984689397,-1763.41,0.00019452,2]
[323434001,1713984689407,-500.0,0.00019452,2]
[323434002,1713984689417,-7231.97,0.00019452,2]
[323434003,1713984689427,-554.36593138,0.00019452,2]
[323434004,1713984689437,-500.0,0.00019452,2]
[323434005,1713984689447,-1109.8,0.00019452,2]
[323434006,1713984689457,-703.53,0.00019452,2]
[323434007,1713984689467,-1396.91,0.00019452,2]
[323434008,1713984689477,-500.0,0.00019452,2]
[323434009,1713984689486,-1419.45,0.00019452,2]
[323434010,1713984689496,-7041.65,0.00019452,2]
[323434011,1713984689506,-8055.98,0.00019452,2]
[323434012,1713984689516,-10090.6,0.00019452,2]
[323434013,1713984689526,-522.15,0.00019452,2]
[323434014,1713984689537,-500.0,0.00019452,2]
[323434015,1713984689547,-707.89,0.00019452,2]
[323434016,1713984689557,-500.0,0.00019452,2]
[323434017,1713984689568,-2261.27,0.00019452,2]
[323434018,1713984689578,-2812.39,0.00019452,2]
[323434019,1713984689587,-1234.39,0.00019452,2]
[323434020,1713984689597,-3678.5,0.00019452,2]
[323434021,1713984689607,-1371.63,0.00019452,2]
[323434022,1713984689616,-6891.8,0.00019452,2]
[323434023,1713984689627,-500.0,0.00019452,2]
[323434024,1713984689636,-704.21,0.00019452,2]
[323434025,1713984689783,-925.33,0.00019452,2]
[323434026,1713984689795,-911.08,0.00019452,2]
[323434027,1713984689806,-741.31,0.00019452,2]
[323434028,1713984689816,-500.0,0.00019452,2]
[323434029,1713984689825,-3135.11,0.00019452,2]
[323434030,1713984689835,-2399.0,0.00019452,2]
[323434031,1713984689845,-500.0,0.00019452,2]
[323434032,1713984689854,-872.83,0.00019452,2]
[323434033,1713984689863,-500.0,0.00019452,2]
[323434034,1713984689873,-500.0,0.00019452,2]
[323434035,1713984689882,-3286.45,0.00019452,2]
[323434036,1713984689893,-612.33,0.00019452,2]
[323434037,1713984689903,-8567.18,0.00019452,2]
[323434038,1713984689913,-519.52551654,0.00019452,2]
[323434039,1713984689923,-1176.79,0.00019452,2]
[323434040,1713984689933,-984.91,0.00019452,2]
[323434041,1713984689942,-500.0,0.00019452,2]
[323434042,1713984689952,-500.0,0.00019452,2]
[323434043,1713984689961,-1391.58,0.00019452,2]
[323434044,1713984689971,-1326.81,0.00019452,2]
[323434045,1713984689980,-500.0,0.00019452,2]
[323434046,1713984689990,-500.0,0.00019452,2]
[323434047,1713984690000,-613.12,0.00019452,2]
[323434048,1713984690010,-604.22,0.00019452,2]
[323434049,1713984690020,-2262.73,0.00019452,2]
[323434050,1713984690030,-692.01,0.00019452,2]
[323434051,1713984690040,-1674.86,0.00019452,2]
[323434052,1713984690049,-500.0,0.00019452,2]
[323434053,1713984690059,-500.0,0.00019452,2]
[323434054,1713984690069,-500.0,0.00019452,2]
[323434055,1713984690079,-623.72,0.00019452,2]
[323434056,1713984690088,-623.43,0.00019452,2]
[323434057,1713984690097,-500.0,0.00019452,2]
[323434058,1713984690106,-417.0,0.00019481,2]
[323434059,1713984690116,-150.0,0.00019481,2]
[323434060,1713984690126,-500.0,0.00019726,2]
[323434061,1713984690135,-500.0,0.00019726,2]
[323434062,1713984690144,-625.0,0.00019726,2]
[323434063,1713984690155,-674.8,0.00019726,2]
[323434064,1713984690164,-487.19382953,0.00019726,2]
[323434065,1713984690174,-585.29,0.00019726,2]
[323434066,1713984690183,-716.83,0.00019726,2]
[323434067,1713984690192,-500.0,0.00019726,2]
[323434068,1713984690202,-500.0,0.00019726,2]
[323434069,1713984690211,-500.0,0.00019726,2]
[323434070,1713984690220,-500.0,0.00019726,2]
[323434071,1713984690230,-500.0,0.00019726,2]
[323434072,1713984690239,-560.98,0.00019726,2]
[323434073,1713984690248,-722.43,0.00019726,2]
[323434074,1713984690258,-839.18,0.00019726,2]
[323434075,1713984690267,-500.0,0.00019726,2]
[323434076,1713984690277,-500.0,0.00019726,2]
[323434077,1713984690289,-1155.53,0.00019726,2]
[323434078,1713984690299,-2033.21,0.00019726,2]
[323434079,1713984690308,-1717.84,0.00019726,2]
[323434080,1713984690318,-500.0,0.00019726,2]
[323434081,1713984690329,-1292.95,0.00019726,2]
[323434082,1713984690338,-1786.12,0.00019726,2]
[323434083,1713984690348,-1139.75,0.00019726,2]
[323434084,1713984690357,-603.4,0.00019726,2]
[323434085,1713984690366,-978.62,0.00019726,2]
[323434086,1713984690377,-500.0,0.00019726,2]
[323434087,1713984690386,-902.13,0.00019726,2]
[323434088,1713984690395,-999.37,0.00019726,2]
[323434089,1713984690406,-864.27,0.00019726,2]
[323434090,1713984690415,-789.38,0.00019726,2]
[323434091,1713984690424,-500.0,0.00019726,2]
[323434092,1713984690434,-1005.48,0.00019726,2]
[323434093,1713984690443,-2278.55,0.00019726,2]
[323434094,1713984690452,-345.5712274,0.00019726,2]
[323434095,1713984690461,-708.42,0.00019726,2]
[323434096,1713984690471,-500.0,0.00019726,2]
[323434097,1713984690481,-500.0,0.00019726,2]
[323434098,1713984690491,-785.8,0.00019726,2]
[323434099,1713984690500,-695.13,0.00019726,2]
[323434100,1713984690509,-999.88,0.00019726,2]
[323434101,1713984690519,-500.0,0.00019726,2]
[323434102,1713984690528,-1909.77,0.00019726,2]
[323434103,1713984690538,-500.0,0.00019726,2]
[323434104,1713984690547,-500.0,0.00019726,2]
[323434105,1713984690556,-634.31,0.00019726,2]
[323434106,1713984690566,-414.88797925,0.00019726,2]
[323434107,1713984690575,-500.0,0.00019726,2]
[323434108,1713984690585,-1645.24,0.00019726,2]
[323434109,1713984690595,-500.0,0.00019726,2]
[323434110,1713984690604,-2192.71,0.00019726,2]
[323434111,1713984690613,-736.48,0.00019726,2]
[323434112,1713984690622,-500.0,0.00019726,2]
[323434113,1713984690632,-691.26,0.00019726,2]
[323434114,1713984690641,-500.0,0.00019726,2]
[323434115,1713984690653,-500.0,0.00019726,2]
[323434116,1713984690662,-1002.4,0.00019726,2]
[323434117,1713984690672,-650.3,0.00019726,2]
[323434118,1713984690682,-1100.44,0.00019726,2]
[323434119,1713984690691,-693.43,0.00019726,2]
[323434120,1713984690701,-534.56,0.00019726,2]
[323434121,1713984690711,-500.0,0.00019726,2]
[323434122,1713984690721,-502.63051819,0.00019726,2]
[323434123,1713984690730,-500.0,0.00019726,2]
[323434124,1713984690740,-500.0,0.00019726,2]
[323434125,1713984690750,-1280.96,0.00019726,2]
[323434126,1713984690760,-515.07,0.00019726,2]
[323434127,1713984690769,-1572.17,0.00019726,2]
[323434128,1713984690779,-2597.28,0.00019726,2]
[323434129,1713984690788,-539.11,0.00019726,2]
[323434130,1713984690798,-1730.28,0.00019726,2]
[323434131,1713984690808,-500.0,0.00019726,2]
[323434132,1713984690818,-500.0,0.00019726,2]
[323434133,1713984690827,-553.14,0.00019726,2]
[323434134,1713984690837,-1050.14,0.00019726,2]
[323434135,1713984690847,-2490.79,0.00019726,2]
[323434136,1713984690857,-939.73,0.00019726,2]
[323434137,1713984690866,-500.0,0.00019726,2]
[323434138,1713984690876,-500.0,0.00019726,2]
[323434139,1713984690886,-1217.82,0.00019726,2]
[323434140,1713984690896,-1977.88,0.00019726,2]
[323434141,1713984690911,-979.24,0.00019726,2]
[323434142,1713984690921,-500.0,0.00019726,2]
[323434143,1713984690932,-571.61,0.00019726,2]
[323434144,1713984690942,-1094.17,0.00019726,2]
[323434145,1713984690951,-500.0,0.00019726,2]
[323434146,1713984690960,-1357.41,0.00019726,2]
[323434147,1713984690970,-1382.9,0.00019726,2]
[323434148,1713984690979,-1158.93,0.00019726,2]
[323434149,1713984690988,-1002.6,0.00019726,2]
[323434150,1713984690997,-20762.57,0.00019726,2]
[323434151,1713984691006,-1565.04,0.00019726,2]
[323434152,1713984691016,-1005.95,0.00019726,2]
[323434153,1713984691026,-908.92,0.00019726,2]
[323434154,1713984691035,-19373.57,0.00019726,2]
[323434155,1713984691044,-1126.69,0.00019726,2]
[323434156,1713984691053,-1323.24,0.00019726,2]
[323434157,1713984691062,-2676.08,0.00019726,2]
[323434158,1713984691072,-541.01,0.00019726,2]
[323434159,1713984691082,-4954.95,0.00019726,2]
[323434160,1713984691091,-637.03,0.00019726,2]
[323434161,1713984691101,-806.42,0.00019726,2]
[323434162,1713984691110,-500.0,0.00019726,2]
[323434163,1713984691119,-12995.55,0.00019726,2]
[323434164,1713984691128,-2682.8,0.00019726,2]
[323434165,1713984691138,-1763.41,0.00019726,2]
[323434166,1713984691151,-500.0,0.00019726,2]
[323434167,1713984691161,-7231.97,0.00019726,2]
[323434168,1713984691171,-385.94256362,0.00019726,2]
[323434169,1713984691181,-1109.8,0.00019726,2]
[323434170,1713984691190,-703.53,0.00019726,2]
[323434171,1713984691200,-1396.91,0.00019726,2]
[323434172,1713984691210,-355.10641347,0.00019726,2]
[323434173,1713984691219,-1419.45,0.00019726,2]
[323434174,1713984691228,-7041.65,0.00019726,2]
[323434175,1713984691238,-8055.98,0.00019726,2]
[323434176,1713984691247,-10090.6,0.00019726,2]
[323434177,1713984691256,-522.15,0.00019726,2]
[323434178,1713984691266,-500.0,0.00019726,2]
[323434179,1713984691276,-707.89,0.00019726,2]
[323434180,1713984691286,-572.8054027,0.00019726,2]
[323434181,1713984691298,-2261.27,0.00019726,2]
[323434182,1713984691307,-2812.39,0.00019726,2]
[323434183,1713984691317,-1234.39,0.00019726,2]
[323434184,1713984691327,-3678.5,0.00019726,2]
[323434185,1713984691338,-1371.63,0.00019726,2]
[323434186,1713984691347,-6891.8,0.00019726,2]
[323434187,1713984691357,-602.15376633,0.00019726,2]
[323434188,1713984691366,-704.21,0.00019726,2]
[323434189,1713984691380,-925.33,0.00019726,2]
[323434190,1713984691390,-911.08,0.00019726,2]
[323434191,1713984691405,-741.31,0.00019726,2]
[323434192,1713984691415,-500.0,0.00019726,2]
[323434193,1713984691424,-3135.11,0.00019726,2]
[323434194,1713984691434,-2399.0,0.00019726,2]
[323434195,1713984691444,-376.0,0.00019726,2]
[323434196,1713984691453,-872.83,0.00019726,2]
[323434197,1713984691463,-500.0,0.00019726,2]
[323434198,1713984691473,-500.0,0.00019726,2]
[323434199,1713984691483,-3286.45,0.00019726,2]
[323434200,1713984691492,-612.33,0.00019726,2]
[323434201,1713984691502,-8567.18,0.00019726,2]
[323434202,1713984691512,-1176.79,0.00019726,2]
[323434203,1713984691521,-984.91,0.00019726,2]
[323434204,1713984691530,-500.0,0.00019726,2]
[323434205,1713984691540,-500.0,0.00019726,2]
[323434206,1713984691549,-1391.58,0.00019726,2]
[323434207,1713984691559,-1326.81,0.00019726,2]
[323434208,1713984691568,-500.0,0.00019726,2]
[323434209,1713984691578,-500.0,0.00019726,2]
[323434210,1713984691587,-613.12,0.00019726,2]
[323434211,1713984691597,-604.22,0.00019726,2]
[323434212,1713984691607,-2262.73,0.00019726,2]
[323434213,1713984691617,-692.01,0.00019726,2]
[323434214,1713984691627,-1674.86,0.00019726,2]
[323434215,1713984691637,-500.0,0.00019726,2]
[323434216,1713984691646,-500.0,0.00019726,2]
[323434217,1713984691660,-623.72,0.00019726,2]
[323434218,1713984691669,-500.0,0.00019726,2]
[323434219,1713984691678,-623.43,0.00019726,2]
[323434220,1713984691688,-500.0,0.00019726,2]
[323434221,1713984691697,-1213.46822193,0.0001987,3]
[323434222,1713984691706,-153.0,0.00019885,2]
[323434223,1713984691716,-1944.62925369,0.00019914,2]
[323434224,1713984691725,-1405.57141345,0.00019999,2]
[323434225,1713984691735,-20798.53741531,0.0002,2]
[323434226,1713984691744,-463.56837054,0.0002,2]
[323434227,1713984691754,-154.84515485,0.0002,2]
[323434228,1713984691763,-154.84515485,0.0002,2]
[323434229,1713984691772,-400.0,0.0002,2]
[323434230,1713984691782,-154.84515485,0.0002,2]
[323434231,1713984691791,-80000.0,0.0002,2]
[323434232,1713984691801,-154.84515485,0.0002,2]
[323434233,1713984691810,-319.72058798,0.0002,2]
[323434234,1713984691820,-172.1017468,0.0002,2]
[323434235,1713984691830,-4230.40621117,0.0002,2]
[323434236,1713984691839,-10100.43073269,0.0002,2]
[323434237,1713984691848,-177.75,0.0002,2]
[323434238,1713984691857,-493.0,0.0002,2]
[323434239,1713984691866,-20000.0,0.0002,5]
[323434240,1713984691876,-1009.23373774,0.0002,2]
[323434241,1713984691886,-500.0,0.0002,2]
[323434242,1713984691895,-40331.0,0.0002,2]
[323434243,1713984691906,-288.46200201,0.0002,2]
[323434244,1713984691915,-52410.35629724,0.0002,2]
[323434245,1713984691924,-1500.0,0.0002,2]
[323434246,1713984691934,-524.65079954,0.0002,4]
[323434247,1713984691943,-57000.00000001,0.0002,2]
[323434248,1713984691952,-183.36995134,0.0002,2]
[323434249,1713984691961,-638.0,0.0002,2]
[323434250,1713984691970,-533.65544776,0.0002,2]
[323434251,1713984691979,-500.0,0.0002,2]
[323434252,1713984691990,-500.0,0.0002,2]
[323434253,1713984691999,-625.0,0.0002,2]
[323434254,1713984692008,-674.8,0.0002,2]
[323434255,1713984692018,-585.29,0.0002,2]
[323434256,1713984692027,-716.83,0.0002,2]
[323434257,1713984692036,-500.0,0.0002,2]
[323434258,1713984692045,-500.0,0.0002,2]
[323434259,1713984692054,-500.0,0.0002,2]
[323434260,1713984692063,-560.98,0.0002,2]
[323434261,1713984692072,-722.43,0.0002,2]
[323434262,1713984692082,-839.18,0.0002,2]
[323434263,1713984692091,-638.74289215,0.0002,2]
[323434264,1713984692100,-500.0,0.0002,2]
[323434265,1713984692110,-1155.53,0.0002,2]
[323434266,1713984692120,-2033.21,0.0002,2]
[323434267,1713984692129,-1717.84,0.0002,2]
[323434268,1713984692139,-400.22151459,0.0002,2]
[323434269,1713984692148,-1292.95,0.0002,2]
[323434270,1713984692163,-1786.12,0.0002,2]
[323434271,1713984692172,-1139.75,0.0002,2]
[323434272,1713984692182,-603.4,0.0002,2]
[323434273,1713984692192,-978.62,0.0002,2]
[323434274,1713984692201,-500.0,0.0002,2]
[323434275,1713984692210,-902.13,0.0002,2]
[323434276,1713984692219,-999.37,0.0002,2]
[323434277,1713984692229,-864.27,0.0002,2]
[323434278,1713984692239,-789.38,0.0002,2]
[323434279,1713984692248,-500.0,0.0002,2]
[323434280,1713984692257,-1005.48,0.0002,2]
[323434281,1713984692266,-198.87297567,0.0002,2]
[323434282,1713984692275,-2278.55,0.0002,2]
[323434283,1713984692285,-708.42,0.0002,2]
[323434284,1713984692298,-500.0,0.0002,2]
[323434285,1713984692307,-500.0,0.0002,2]
[323434286,1713984692317,-785.8,0.0002,2]
[323434287,1713984692326,-695.13,0.0002,2]
[323434288,1713984692338,-999.88,0.0002,2]
[323434289,1713984692347,-200.0,0.0002,2]
[323434290,1713984692356,-500.0,0.0002,2]
[323434291,1713984692368,-1909.77,0.0002,2]
[323434292,1713984692377,-500.0,0.0002,2]
[323434293,1713984692386,-634.31,0.0002,2]
[323434294,1713984692396,-373.02111145,0.0002,2]
[323434295,1713984692410,-1645.24,0.0002,2]
[323434296,1713984692420,-625.60121395,0.0002,2]
[323434297,1713984692429,-2192.71,0.0002,2]
[323434298,1713984692439,-736.48,0.0002,2]
[323434299,1713984692449,-500.0,0.0002,2]
[323434300,1713984692460,-691.26,0.0002,2]
[323434301,1713984692471,-500.0,0.0002,2]
[323434302,1713984692481,-500.0,0.0002,2]
[323434303,1713984692492,-1002.4,0.0002,2]
[323434304,1713984692503,-650.3,0.0002,2]
[323434305,1713984692515,-1100.44,0.0002,2]
[323434306,1713984692528,-693.43,0.0002,2]
[323434307,1713984692539,-534.56,0.0002,2]
[323434308,1713984692549,-218.45391931,0.0002,2]
[323434309,1713984692560,-500.0,0.0002,2]
[323434310,1713984692571,-500.0,0.0002,2]
[323434311,1713984692582,-1280.96,0.0002,2]
[323434312,1713984692591,-515.07,0.0002,2]
[323434313,1713984692600,-1572.17,0.0002,2]
[323434314,1713984692609,-2597.28,0.0002,2]
[323434315,1713984692619,-539.11,0.0002,2]
[323434316,1713984692629,-1730.28,0.0002,2]
[323434317,1713984692638,-166.61284125,0.0002,2]
[323434318,1713984692647,-500.0,0.0002,2]
[323434319,1713984692660,-553.14,0.0002,2]
[323434320,1713984692669,-1050.14,0.0002,2]
[323434321,1713984692678,-2490.79,0.0002,2]
[323434322,1713984692688,-939.73,0.0002,2]
[323434323,1713984692697,-500.0,0.0002,2]
[323434324,1713984692707,-500.0,0.0002,2]
[323434325,1713984692716,-1217.82,0.0002,2]
[323434326,1713984692726,-1977.88,0.0002,2]
[323434327,1713984692735,-979.24,0.0002,2]
[323434328,1713984692745,-500.0,0.0002,2]
[323434329,1713984692754,-571.61,0.0002,2]
[323434330,1713984692764,-1094.17,0.0002,2]
[323434331,1713984692775,-186.90361395,0.0002,2]
[323434332,1713984692785,-1357.41,0.0002,2]
[323434333,1713984692795,-1382.9,0.0002,2]
[323434334,1713984692805,-1158.93,0.0002,2]
[323434335,1713984692815,-1002.6,0.0002,2]
[323434336,1713984692824,-20762.57,0.0002,2]
[323434337,1713984692834,-1565.04,0.0002,2]
[323434338,1713984692843,-1005.95,0.0002,2]
[323434339,1713984692853,-19373.57,0.0002,2]
[323434340,1713984692862,-908.92,0.0002,2]
[323434341,1713984692872,-1126.69,0.0002,2]
[323434342,1713984692890,-1323.24,0.0002,2]
[323434343,1713984692912,-2676.08,0.0002,2]
[323434344,1713984692938,-541.01,0.0002,2]
[323434345,1713984692970,-4954.95,0.0002,2]
[323434346,1713984693016,-637.03,0.0002,2]
[323434347,1713984693064,-806.42,0.0002,2]
[323434348,1713984693073,-500.0,0.0002,2]
[323434349,1713984693083,-12995.55,0.0002,2]
[323434350,1713984693093,-2682.8,0.0002,2]
[323434351,1713984693103,-1763.41,0.0002,2]
[323434352,1713984693112,-500.0,0.0002,2]
[323434353,1713984693121,-7231.97,0.0002,2]
[323434354,1713984693285,-1109.8,0.0002,2]
[323434355,1713984693296,-703.53,0.0002,2]
[323434356,1713984693307,-1396.91,0.0002,2]
[323434357,1713984693317,-1419.45,0.0002,2]
[323434358,1713984693329,-8055.98,0.0002,2]
[323434359,1713984693339,-10090.6,0.0002,2]
[323434360,1713984693349,-7041.65,0.0002,2]
[323434361,1713984693359,-522.15,0.0002,2]
[323434362,1713984693371,-503.73605106,0.0002,2]
[323434363,1713984693382,-707.89,0.0002,2]
[323434364,1713984693392,-2261.27,0.0002,2]
[323434365,1713984693405,-2812.39,0.0002,2]
[323434366,1713984693418,-1234.39,0.0002,2]
[323434367,1713984693428,-3678.5,0.0002,2]
[323434368,1713984693438,-1371.63,0.0002,2]
[323434369,1713984693448,-6891.8,0.0002,2]
[323434370,1713984693457,-704.21,0.0002,2]
[323434371,1713984693467,-925.33,0.0002,2]
[323434372,1713984693478,-911.08,0.0002,2]
[323434373,1713984693487,-741.31,0.0002,2]
[323434374,1713984693498,-500.0,0.0002,2]
[323434375,1713984693507,-3135.11,0.0002,2]
[323434376,1713984693517,-2399.0,0.0002,2]
[323434377,1713984693527,-872.83,0.0002,2]
[323434378,1713984693537,-500.0,0.0002,2]
[323434379,1713984693547,-500.0,0.0002,2]
[323434380,1713984693556,-3286.45,0.0002,2]
[323434381,1713984693566,-612.33,0.0002,2]
[323434382,1713984693576,-8567.18,0.0002,2]
[323434383,1713984693586,-1176.79,0.0002,2]
[323434384,1713984693596,-984.91,0.0002,2]
[323434385,1713984693605,-500.0,0.0002,2]
[323434386,1713984693615,-500.0,0.0002,2]
[323434387,1713984693625,-1391.58,0.0002,2]
[323434388,1713984693635,-1326.81,0.0002,2]
[323434389,1713984693645,-500.0,0.0002,2]
[323434390,1713984693660,-500.0,0.0002,2]
[323434391,1713984693670,-604.22,0.0002,2]
[323434392,1713984693680,-613.12,0.0002,2]
[323434393,1713984693690,-2262.73,0.0002,2]
[323434394,1713984693700,-692.01,0.0002,2]
[323434395,1713984693710,-1674.86,0.0002,2]
[323434396,1713984693719,-514.32270392,0.0002,2]
[323434397,1713984693728,-347.31342607,0.0002,2]
[323434398,1713984693738,-623.72,0.0002,2]
[323434399,1713984693747,-500.0,0.0002,2]
[323434400,1713984693756,-623.43,0.0002,2]
[323434401,1713984693766,-500.0,0.0002,2]
[323434402,1713984693776,-150.0,0.0002005,2]
[323434403,1713984693785,-620.00000037,0.00020222,2]
[323434404,1713984693794,-500.0,0.00020273,2]
[323434405,1713984693804,-500.0,0.00020273,2]
[323434406,1713984693813,-625.0,0.00020273,2]
[323434407,1713984693823,-674.8,0.00020273,2]
[323434408,1713984693832,-585.29,0.00020273,2]
[323434409,1713984693841,-716.83,0.00020273,2]
[323434410,1713984693850,-500.0,0.00020273,2]
[323434411,1713984693859,-644.43301845,0.00020273,2]
[323434412,1713984693868,-500.0,0.00020273,2]
[323434413,1713984693878,-560.98,0.00020273,2]
[323434414,1713984693887,-722.43,0.00020273,2]
[323434415,1713984693896,-839.18,0.00020273,2]
[323434416,1713984693909,-500.0,0.00020273,2]
[323434417,1713984693918,-1155.53,0.00020273,2]
[323434418,1713984693927,-2033.21,0.00020273,2]
[323434419,1713984693936,-1717.84,0.00020273,2]
[323434420,1713984693945,-1292.95,0.00020273,2]
[323434421,1713984693954,-1786.12,0.00020273,2]
[323434422,1713984693964,-1139.75,0.00020273,2]
[323434423,1713984693973,-603.4,0.00020273,2]
[323434424,1713984693982,-978.62,0.00020273,2]
[323434425,1713984693991,-248.7491891,0.00020273,2]
[323434426,1713984694000,-902.13,0.00020273,2]
[323434427,1713984694009,-999.37,0.00020273,2]
[323434428,1713984694019,-864.27,0.00020273,2]
[323434429,1713984694028,-789.38,0.00020273,2]
[323434430,1713984694037,-500.0,0.00020273,2]
[323434431,1713984694046,-1005.48,0.00020273,2]
[323434432,1713984694054,-2278.55,0.00020273,2]
[323434433,1713984694063,-708.42,0.00020273,2]
[323434434,1713984694072,-500.0,0.00020273,2]
[323434435,1713984694082,-500.0,0.00020273,2]
[323434436,1713984694091,-785.8,0.00020273,2]
[323434437,1713984694100,-695.13,0.00020273,2]
[323434438,1713984694109,-999.88,0.00020273,2]
[323434439,1713984694118,-502.72857206,0.00020273,2]
[323434440,1713984694127,-1909.77,0.00020273,2]
[323434441,1713984694137,-500.0,0.00020273,2]
[323434442,1713984694146,-634.31,0.00020273,2]
[323434443,1713984694158,-1645.24,0.00020273,2]
[323434444,1713984694167,-2192.71,0.00020273,2]
[323434445,1713984694177,-736.48,0.00020273,2]
[323434446,1713984694186,-500.0,0.00020273,2]
[323434447,1713984694195,-691.26,0.00020273,2]
[323434448,1713984694204,-500.0,0.00020273,2]
[323434449,1713984694215,-1002.4,0.00020273,2]
[323434450,1713984694224,-650.3,0.00020273,2]
[323434451,1713984694234,-1100.44,0.00020273,2]
[323434452,1713984694244,-693.43,0.00020273,2]
[323434453,1713984694254,-534.56,0.00020273,2]
[323434454,1713984694263,-500.0,0.00020273,2]
[323434455,1713984694272,-500.0,0.00020273,2]
[323434456,1713984694282,-1280.96,0.00020273,2]
[323434457,1713984694293,-515.07,0.00020273,2]
[323434458,1713984694304,-1572.17,0.00020273,2]
[323434459,1713984694314,-2597.28,0.00020273,2]
[323434460,1713984694323,-539.11,0.00020273,2]
[323434461,1713984694333,-1730.28,0.00020273,2]
[323434462,1713984694343,-500.0,0.00020273,2]
[323434463,1713984694352,-553.14,0.00020273,2]
[323434464,1713984694361,-1050.14,0.00020273,2]
[323434465,1713984694371,-2490.79,0.00020273,2]
[323434466,1713984694383,-939.73,0.00020273,2]
[323434467,1713984694393,-500.0,0.00020273,2]
[323434468,1713984694404,-500.0,0.00020273,2]
[323434469,1713984694413,-1217.82,0.00020273,2]
[323434470,1713984694423,-1977.88,0.00020273,2]
[323434471,1713984694433,-979.24,0.00020273,2]
[323434472,1713984694443,-288.04203342,0.00020273,2]
[323434473,1713984694453,-571.61,0.00020273,2]
[323434474,1713984694463,-1094.17,0.00020273,2]
[323434475,1713984694474,-1357.41,0.00020273,2]
[323434476,1713984694482,-1382.9,0.00020273,2]
[323434477,1713984694492,-1158.93,0.00020273,2]
[323434478,1713984694501,-1002.6,0.00020273,2]
[323434479,1713984694510,-20762.57,0.00020273,2]
[323434480,1713984694520,-1565.04,0.00020273,2]
[323434481,1713984694530,-1005.95,0.00020273,2]
[323434482,1713984694539,-19373.57,0.00020273,2]
[323434483,1713984694549,-908.92,0.00020273,2]
[323434484,1713984694558,-1126.69,0.00020273,2]
[323434485,1713984694568,-1323.24,0.00020273,2]
[323434486,1713984694577,-2676.08,0.00020273,2]
[323434487,1713984694587,-541.01,0.00020273,2]
[323434488,1713984694596,-4954.95,0.00020273,2]
[323434489,1713984694605,-637.03,0.00020273,2]
[323434490,1713984694615,-806.42,0.00020273,2]
[323434491,1713984694625,-479.4256485,0.00020273,2]
[323434492,1713984694634,-12995.55,0.00020273,2]
[323434493,1713984694644,-2682.8,0.00020273,2]
[323434494,1713984694654,-1763.41,0.00020273,2]